[Event "Late-Titled-Tuesday-Blitz-September-12-2023"]
[Site "Chess.com"]
[Date "2023.09.12"]
[Round "5"]
[White "gmpeter008"]
[Black "PotapovaM"]
[Result "1-0"]
[WhiteElo "2474"]
[BlackElo "2630"]
[TimeControl "180+1"]
[EndTime "14:51:48 PDT"]
[Termination "gmpeter008 won on time"]

1. c4 {[%clk 0:03:00]} 1... Nf6 {[%clk 0:02:49.7]} 2. g3 {[%clk 0:02:59.9]} 2...
g6 {[%clk 0:02:48]} 3. Bg2 {[%clk 0:03:00.3]} 3... Bg7 {[%clk 0:02:47.2]} 4. Nc3
{[%clk 0:03:00.2]} 4... O-O {[%clk 0:02:35.9]} 5. e4 {[%clk 0:02:59.2]} 5... e5
{[%clk 0:02:35]} 6. Nge2 {[%clk 0:02:58.7]} 6... d6 {[%clk 0:02:33.9]} 7. O-O
{[%clk 0:02:58.6]} 7... c5 {[%clk 0:02:30.5]} 8. d3 {[%clk 0:02:57.4]} 8... Nc6
{[%clk 0:02:30.6]} 9. h3 {[%clk 0:02:56.5]} 9... Nd4 {[%clk 0:02:30.7]} 10. Nxd4
{[%clk 0:02:49.9]} 10... cxd4 {[%clk 0:02:28.1]} 11. Ne2 {[%clk 0:02:50.2]}
11... Nd7 {[%clk 0:02:06.7]} 12. f4 {[%clk 0:02:34.7]} 12... f5 {[%clk
0:02:04.5]} 13. exf5 {[%clk 0:02:16.7]} 13... gxf5 {[%clk 0:02:04.4]} 14. b3
{[%clk 0:02:13.8]} 14... Nc5 {[%clk 0:02:03]} 15. Ba3 {[%clk 0:02:11.1]} 15...
Qe7 {[%clk 0:01:54.7]} 16. fxe5 {[%clk 0:02:09.7]} 16... dxe5 {[%clk 0:01:50.4]}
17. Qd2 {[%clk 0:02:06.7]} 17... Rb8 {[%clk 0:01:44]} 18. Rae1 {[%clk
0:02:05.9]} 18... Qc7 {[%clk 0:01:36.7]} 19. b4 {[%clk 0:01:31.8]} 19... Ne6
{[%clk 0:01:30.3]} 20. Bd5 {[%clk 0:01:31]} 20... Kh8 {[%clk 0:01:19.5]} 21. b5
{[%clk 0:01:26.6]} 21... Nc5 {[%clk 0:01:14.6]} 22. Qg5 {[%clk 0:01:25.8]} 22...
b6 {[%clk 0:00:29.1]} 23. Nxd4 {[%clk 0:01:22.7]} 23... Bd7 {[%clk 0:00:03.5]}
24. Nxf5 {[%clk 0:01:19.2]} 24... Bxf5 {[%clk 0:00:03.6]} 25. Rxf5 {[%clk
0:01:19.7]} 25... Rxf5 {[%clk 0:00:04.2]} 26. Qxf5 {[%clk 0:01:20.5]} 26... Nxd3
{[%clk 0:00:04.3]} 27. Be4 {[%clk 0:01:19.9]} 27... Bh6 {[%clk 0:00:02.9]} 28.
Bd6 {[%clk 0:01:14.9]} 1-0

[Event "Late-Titled-Tuesday-Blitz-September-12-2023"]
[Site "Chess.com"]
[Date "2023.09.12"]
[Round "5"]
[White "ArtemDyachuk"]
[Black "F-Ghaith2021"]
[Result "1-0"]
[WhiteElo "2545"]
[BlackElo "2369"]
[TimeControl "180+1"]
[EndTime "14:51:49 PDT"]
[Termination "ArtemDyachuk won by resignation"]

1. d4 {[%clk 0:03:00.9]} 1... Nf6 {[%clk 0:02:59.9]} 2. c4 {[%clk 0:02:59.5]}
2... e6 {[%clk 0:03:00.3]} 3. Nc3 {[%clk 0:02:42.4]} 3... d5 {[%clk 0:03:00.5]}
4. cxd5 {[%clk 0:02:41.7]} 4... exd5 {[%clk 0:03:00.4]} 5. Bg5 {[%clk
0:02:42.2]} 5... Be7 {[%clk 0:03:00.2]} 6. e3 {[%clk 0:02:41.3]} 6... c6 {[%clk
0:03:00.6]} 7. Bd3 {[%clk 0:02:40.9]} 7... Nbd7 {[%clk 0:03:00.9]} 8. Qc2 {[%clk
0:02:40.7]} 8... Nh5 {[%clk 0:03:01.5]} 9. Bxe7 {[%clk 0:02:36.8]} 9... Qxe7
{[%clk 0:03:02.4]} 10. Nge2 {[%clk 0:02:32.1]} 10... g6 {[%clk 0:03:02.1]} 11.
O-O {[%clk 0:02:27.2]} 11... O-O {[%clk 0:02:59.6]} 12. Rae1 {[%clk 0:02:22.6]}
12... f5 {[%clk 0:02:58.6]} 13. Nc1 {[%clk 0:02:20.2]} 13... Ndf6 {[%clk
0:02:57.8]} 14. f3 {[%clk 0:02:19.3]} 14... Qb4 {[%clk 0:02:40.9]} 15. Nb3
{[%clk 0:02:13.3]} 15... Bd7 {[%clk 0:02:40.7]} 16. Qf2 {[%clk 0:02:13]} 16...
a5 {[%clk 0:02:38.5]} 17. Nc5 {[%clk 0:02:07.4]} 17... Rad8 {[%clk 0:02:27.2]}
18. N3a4 {[%clk 0:02:03.3]} 18... Ne4 {[%clk 0:02:16.5]} 19. fxe4 {[%clk
0:01:02.5]} 19... fxe4 {[%clk 0:02:17.4]} 20. a3 {[%clk 0:01:02.3]} 20... Rxf2
{[%clk 0:01:46.9]} 21. axb4 {[%clk 0:01:01.1]} 21... Rd2 {[%clk 0:01:23.1]} 22.
Be2 {[%clk 0:00:55.3]} 22... b5 {[%clk 0:01:23.4]} 23. Bxh5 {[%clk 0:00:49.4]}
23... bxa4 {[%clk 0:01:20]} 24. Re2 {[%clk 0:00:49.5]} 24... Rxe2 {[%clk
0:01:11.9]} 25. Bxe2 {[%clk 0:00:50.4]} 25... axb4 {[%clk 0:01:10.8]} 26. Ra1
{[%clk 0:00:50.1]} 26... Bf5 {[%clk 0:00:52.5]} 27. Rxa4 {[%clk 0:00:48.5]}
27... Rb8 {[%clk 0:00:53]} 28. Na6 {[%clk 0:00:43.2]} 28... Rc8 {[%clk
0:00:48.5]} 29. Rxb4 {[%clk 0:00:38.2]} 29... Ra8 {[%clk 0:00:46.9]} 30. Rb8+
{[%clk 0:00:37.2]} 30... Rxb8 {[%clk 0:00:47.3]} 31. Nxb8 {[%clk 0:00:38.1]}
31... Kf7 {[%clk 0:00:47.7]} 32. Nxc6 {[%clk 0:00:37.7]} 32... Bd7 {[%clk
0:00:48]} 33. Ne5+ {[%clk 0:00:37.5]} 33... Ke6 {[%clk 0:00:48.9]} 34. Bg4+
{[%clk 0:00:36.5]} 1-0

[Event "Late-Titled-Tuesday-Blitz-September-12-2023"]
[Site "Chess.com"]
[Date "2023.09.12"]
[Round "5"]
[White "Bigfish1995"]
[Black "kuli4ik"]
[Result "1-0"]
[WhiteElo "3060"]
[BlackElo "2946"]
[TimeControl "180+1"]
[EndTime "14:51:55 PDT"]
[Termination "Bigfish1995 won on time"]

1. h3 {[%clk 0:03:00.9]} 1... d5 {[%clk 0:02:59.1]} 2. Nf3 {[%clk 0:03:00.5]}
2... c6 {[%clk 0:02:54.7]} 3. b3 {[%clk 0:02:58]} 3... f6 {[%clk 0:02:50.3]} 4.
d4 {[%clk 0:02:57.2]} 4... g6 {[%clk 0:02:41.2]} 5. c4 {[%clk 0:02:55.3]} 5...
Bg7 {[%clk 0:02:39.5]} 6. Nc3 {[%clk 0:02:54.6]} 6... e6 {[%clk 0:02:39.5]} 7.
e4 {[%clk 0:02:54.3]} 7... Ne7 {[%clk 0:02:38.7]} 8. Be2 {[%clk 0:02:50.8]} 8...
O-O {[%clk 0:02:34.4]} 9. O-O {[%clk 0:02:51.2]} 9... dxe4 {[%clk 0:02:19.5]}
10. Nxe4 {[%clk 0:02:51.1]} 10... f5 {[%clk 0:02:19.8]} 11. Nc5 {[%clk
0:02:51.1]} 11... b6 {[%clk 0:02:19.5]} 12. Nd3 {[%clk 0:02:50.4]} 12... c5
{[%clk 0:02:18.1]} 13. Nfe5 {[%clk 0:02:49]} 13... Nbc6 {[%clk 0:02:14.4]} 14.
Bf3 {[%clk 0:02:39.9]} 14... Bb7 {[%clk 0:02:13.6]} 15. Bg5 {[%clk 0:02:16.2]}
15... Qc8 {[%clk 0:02:12.4]} 16. Nxc6 {[%clk 0:02:03.1]} 16... Nxc6 {[%clk
0:02:11.2]} 17. dxc5 {[%clk 0:02:03.6]} 17... e5 {[%clk 0:01:52.6]} 18. Bd5+
{[%clk 0:02:00.6]} 18... Kh8 {[%clk 0:01:51.9]} 19. Rc1 {[%clk 0:01:39.6]} 19...
h6 {[%clk 0:01:49.9]} 20. Be3 {[%clk 0:01:36.7]} 20... f4 {[%clk 0:01:09.6]} 21.
Bd2 {[%clk 0:01:35.1]} 21... Nd4 {[%clk 0:01:09.7]} 22. Re1 {[%clk 0:01:35.6]}
22... f3 {[%clk 0:01:07.4]} 23. Nxe5 {[%clk 0:01:29.6]} 23... Bxe5 {[%clk
0:00:27.8]} 24. Rxe5 {[%clk 0:01:22]} 24... fxg2 {[%clk 0:00:27.6]} 25. Bc3
{[%clk 0:01:04]} 25... Qxh3 {[%clk 0:00:26.2]} 26. Rh5 {[%clk 0:01:03.9]} 1-0

[Event "Late-Titled-Tuesday-Blitz-September-12-2023"]
[Site "Chess.com"]
[Date "2023.09.12"]
[Round "5"]
[White "emirgulbeyaz"]
[Black "lilylg"]
[Result "1-0"]
[WhiteElo "2314"]
[BlackElo "2171"]
[TimeControl "180+1"]
[EndTime "14:51:57 PDT"]
[Termination "emirgulbeyaz won on time"]

1. d4 {[%clk 0:03:00.9]} 1... d5 {[%clk 0:02:59.7]} 2. Bf4 {[%clk 0:03:00.8]}
2... c6 {[%clk 0:02:57.3]} 3. e3 {[%clk 0:03:00.4]} 3... Nf6 {[%clk 0:02:57.8]}
4. Nf3 {[%clk 0:03:00.8]} 4... e6 {[%clk 0:02:49.5]} 5. c4 {[%clk 0:02:57.4]}
5... Ne4 {[%clk 0:02:49.3]} 6. Bd3 {[%clk 0:02:55.8]} 6... f5 {[%clk 0:02:49.1]}
7. O-O {[%clk 0:02:54.8]} 7... Be7 {[%clk 0:02:48.8]} 8. Nc3 {[%clk 0:02:54]}
8... O-O {[%clk 0:02:48.6]} 9. Nd2 {[%clk 0:02:53.4]} 9... Nd7 {[%clk
0:02:46.8]} 10. f3 {[%clk 0:02:53.6]} 10... Nxd2 {[%clk 0:02:19.5]} 11. Qxd2
{[%clk 0:02:53.4]} 11... Bf6 {[%clk 0:02:19.5]} 12. Rfd1 {[%clk 0:02:46.2]}
12... Kh8 {[%clk 0:02:01]} 13. Rac1 {[%clk 0:02:45.4]} 13... g5 {[%clk
0:01:33.1]} 14. Bg3 {[%clk 0:02:44]} 14... f4 {[%clk 0:01:33.1]} 15. Bf2 {[%clk
0:02:44.3]} 15... dxc4 {[%clk 0:01:12.9]} 16. Bxc4 {[%clk 0:02:44]} 16... Nb6
{[%clk 0:01:11.7]} 17. Bb3 {[%clk 0:02:41]} 17... fxe3 {[%clk 0:01:00.8]} 18.
Bxe3 {[%clk 0:02:40.3]} 18... Nd5 {[%clk 0:01:00.8]} 19. Bf2 {[%clk 0:02:40.1]}
19... Nf4 {[%clk 0:00:50.7]} 20. Ne4 {[%clk 0:02:38.1]} 20... Bg7 {[%clk
0:00:37.8]} 21. Re1 {[%clk 0:02:31.6]} 21... e5 {[%clk 0:00:31.7]} 22. dxe5
{[%clk 0:02:26.7]} 22... Qxd2 {[%clk 0:00:16.1]} 23. Nxd2 {[%clk 0:02:27.3]}
23... Bf5 {[%clk 0:00:15.9]} 24. Bc2 {[%clk 0:02:17.8]} 24... Bxc2 {[%clk
0:00:15]} 25. Rxc2 {[%clk 0:02:18.7]} 25... Nd3 {[%clk 0:00:15.3]} 26. Re2
{[%clk 0:02:19.1]} 26... Nxe5 {[%clk 0:00:15.6]} 27. Ne4 {[%clk 0:02:17.3]}
27... h6 {[%clk 0:00:12.9]} 28. Nc5 {[%clk 0:02:15.7]} 28... b6 {[%clk
0:00:10.3]} 29. Ne6 {[%clk 0:02:15.3]} 29... Rae8 {[%clk 0:00:05.1]} 30. Nxf8
{[%clk 0:02:13.2]} 30... Bxf8 {[%clk 0:00:04.3]} 31. Bd4 {[%clk 0:02:11.2]}
31... Bg7 {[%clk 0:00:03.7]} 32. Kf1 {[%clk 0:02:08.5]} 32... Re7 {[%clk
0:00:03.2]} 33. Rc1 {[%clk 0:02:06.5]} 33... Ng6 {[%clk 0:00:03.4]} 34. Rxe7
{[%clk 0:02:03.4]} 34... Nxe7 {[%clk 0:00:04.3]} 35. Bxg7+ {[%clk 0:02:03.3]}
35... Kxg7 {[%clk 0:00:04.8]} 36. Rd1 {[%clk 0:02:03.1]} 36... Nd5 {[%clk
0:00:05.1]} 37. Kf2 {[%clk 0:02:01.4]} 37... Kf7 {[%clk 0:00:05.4]} 38. g3
{[%clk 0:02:01.8]} 38... Ke6 {[%clk 0:00:05.3]} 39. a3 {[%clk 0:02:02.3]} 39...
c5 {[%clk 0:00:03.8]} 40. Rh1 {[%clk 0:02:02]} 40... Nf6 {[%clk 0:00:03.1]} 41.
h4 {[%clk 0:02:02.2]} 41... g4 {[%clk 0:00:03.7]} 42. Rd1 {[%clk 0:01:59.7]}
42... b5 {[%clk 0:00:03.3]} 43. Ke3 {[%clk 0:01:57.1]} 43... Nd5+ {[%clk
0:00:03.3]} 44. Kf2 {[%clk 0:01:56.7]} 44... gxf3 {[%clk 0:00:03.4]} 45. Kxf3
{[%clk 0:01:57.6]} 45... c4 {[%clk 0:00:02.3]} 46. g4 {[%clk 0:01:57.6]} 46...
h5 {[%clk 0:00:02.2]} 47. g5 {[%clk 0:01:57.4]} 47... Ne7 {[%clk 0:00:01.2]} 48.
Ke4 {[%clk 0:01:55.2]} 1-0

[Event "Late-Titled-Tuesday-Blitz-September-12-2023"]
[Site "Chess.com"]
[Date "2023.09.12"]
[Round "5"]
[White "Ali_rastbod"]
[Black "Hikaru"]
[Result "0-1"]
[WhiteElo "2706"]
[BlackElo "3206"]
[TimeControl "180+1"]
[EndTime "14:51:59 PDT"]
[Termination "Hikaru won by resignation"]

1. d4 {[%clk 0:03:00.9]} 1... g6 {[%clk 0:02:42.2]} 2. e4 {[%clk 0:02:59.6]}
2... Bg7 {[%clk 0:02:41.6]} 3. Nf3 {[%clk 0:03:00.3]} 3... c6 {[%clk 0:02:40.3]}
4. Nc3 {[%clk 0:02:59.5]} 4... d5 {[%clk 0:02:40.3]} 5. h3 {[%clk 0:02:58.5]}
5... b6 {[%clk 0:02:32.2]} 6. e5 {[%clk 0:02:48.9]} 6... Ba6 {[%clk 0:02:32]} 7.
Bxa6 {[%clk 0:02:47.7]} 7... Nxa6 {[%clk 0:02:32.9]} 8. e6 {[%clk 0:02:47]} 8...
fxe6 {[%clk 0:02:32.5]} 9. Qe2 {[%clk 0:02:44.4]} 9... Nc7 {[%clk 0:02:31.6]}
10. Bf4 {[%clk 0:02:43.6]} 10... Nh6 {[%clk 0:02:19.2]} 11. O-O-O {[%clk
0:02:32.9]} 11... Nf7 {[%clk 0:02:17.4]} 12. Bxc7 {[%clk 0:02:30.8]} 12... Qxc7
{[%clk 0:02:17.4]} 13. Qxe6 {[%clk 0:02:31.2]} 13... Qd6 {[%clk 0:02:17.7]} 14.
Rhe1 {[%clk 0:02:20.7]} 14... Qxe6 {[%clk 0:02:16.4]} 15. Rxe6 {[%clk
0:02:21.6]} 15... Kd7 {[%clk 0:02:17.1]} 16. Rde1 {[%clk 0:02:21.8]} 16... Rae8
{[%clk 0:02:15.4]} 17. a4 {[%clk 0:02:11]} 17... Rhf8 {[%clk 0:02:11.9]} 18. Kd1
{[%clk 0:02:01.2]} 18... Nd6 {[%clk 0:02:04.8]} 19. Nb1 {[%clk 0:01:12.8]} 19...
Rf4 {[%clk 0:01:35.3]} 20. Nbd2 {[%clk 0:00:30.3]} 20... Bxd4 {[%clk 0:01:29]}
21. g3 {[%clk 0:00:29.9]} 21... Rxf3 {[%clk 0:01:29.4]} 22. Nxf3 {[%clk
0:00:29.7]} 22... Bxf2 {[%clk 0:01:29.7]} 23. R1e2 {[%clk 0:00:26.8]} 23... Bxg3
{[%clk 0:01:29.7]} 24. R6e3 {[%clk 0:00:26.1]} 24... Nc4 {[%clk 0:01:17.7]} 25.
Rb3 {[%clk 0:00:25.6]} 25... Bf4 {[%clk 0:01:16.4]} 26. h4 {[%clk 0:00:20.1]}
26... e5 {[%clk 0:01:16.4]} 27. Ng5 {[%clk 0:00:20.1]} 27... e4 {[%clk
0:01:10.5]} 28. Nh3 {[%clk 0:00:20.4]} 28... Be5 {[%clk 0:01:09.9]} 29. Rf2
{[%clk 0:00:20.6]} 29... Nxb2+ {[%clk 0:01:09.6]} 30. Ke2 {[%clk 0:00:21.1]}
30... Nxa4 {[%clk 0:01:09.4]} 31. Rf7+ {[%clk 0:00:21]} 31... Re7 {[%clk
0:01:09.6]} 32. Rxe7+ {[%clk 0:00:18.1]} 32... Kxe7 {[%clk 0:01:09.5]} 33. Ra3
{[%clk 0:00:19]} 33... Nc3+ {[%clk 0:01:08.3]} 34. Kd2 {[%clk 0:00:19.6]} 34...
Nb1+ {[%clk 0:01:08.2]} 0-1

[Event "Late-Titled-Tuesday-Blitz-September-12-2023"]
[Site "Chess.com"]
[Date "2023.09.12"]
[Round "5"]
[White "aNaartjieZA"]
[Black "Dr_crypt"]
[Result "1-0"]
[WhiteElo "2589"]
[BlackElo "2423"]
[TimeControl "180+1"]
[EndTime "14:51:59 PDT"]
[Termination "aNaartjieZA won on time"]

1. e4 {[%clk 0:03:00.9]} 1... d5 {[%clk 0:02:59.9]} 2. exd5 {[%clk 0:03:00.7]}
2... Qxd5 {[%clk 0:03:00.6]} 3. Nc3 {[%clk 0:03:00.8]} 3... Qd6 {[%clk
0:03:01.3]} 4. Nf3 {[%clk 0:03:00.7]} 4... Bg4 {[%clk 0:02:59.6]} 5. Be2 {[%clk
0:02:59.9]} 5... Nf6 {[%clk 0:02:58.4]} 6. h3 {[%clk 0:03:00]} 6... Bh5 {[%clk
0:02:57.8]} 7. d3 {[%clk 0:02:59.6]} 7... Nc6 {[%clk 0:02:50.8]} 8. Bg5 {[%clk
0:02:58.8]} 8... e6 {[%clk 0:02:49]} 9. Qd2 {[%clk 0:02:58.6]} 9... Be7 {[%clk
0:02:48]} 10. Bf4 {[%clk 0:02:56.2]} 10... e5 {[%clk 0:02:24.3]} 11. Bg3 {[%clk
0:02:55.6]} 11... O-O {[%clk 0:02:18.8]} 12. O-O {[%clk 0:02:54.6]} 12... Rad8
{[%clk 0:02:00.8]} 13. Rad1 {[%clk 0:02:51.3]} 13... Rfe8 {[%clk 0:01:58.3]} 14.
Qc1 {[%clk 0:02:46.5]} 14... Bxf3 {[%clk 0:01:49.4]} 15. Bxf3 {[%clk 0:02:45]}
15... Nd4 {[%clk 0:01:50.3]} 16. Be2 {[%clk 0:02:32.2]} 16... Nd5 {[%clk
0:01:45.8]} 17. Rfe1 {[%clk 0:02:29.1]} 17... Nxc3 {[%clk 0:01:34.9]} 18. bxc3
{[%clk 0:02:28.8]} 18... Nf5 {[%clk 0:01:30.9]} 19. Bh2 {[%clk 0:02:26.1]} 19...
Bf6 {[%clk 0:01:27.5]} 20. Bg4 {[%clk 0:02:22.9]} 20... Ne7 {[%clk 0:01:24.9]}
21. Qb2 {[%clk 0:02:19.8]} 21... b6 {[%clk 0:01:11.4]} 22. Qb5 {[%clk
0:02:19.2]} 22... Qd5 {[%clk 0:01:04.1]} 23. a4 {[%clk 0:02:14.1]} 23... c6
{[%clk 0:00:57.5]} 24. Qb4 {[%clk 0:02:10.7]} 24... c5 {[%clk 0:00:52.5]} 25.
Qb5 {[%clk 0:02:10.2]} 25... Ng6 {[%clk 0:00:45.4]} 26. Bf3 {[%clk 0:02:05.8]}
26... Qa2 {[%clk 0:00:41.7]} 27. Re2 {[%clk 0:01:56.2]} 27... c4 {[%clk
0:00:35.4]} 28. d4 {[%clk 0:01:49.8]} 28... Re7 {[%clk 0:00:15.5]} 29. d5 {[%clk
0:01:46.9]} 29... Qa3 {[%clk 0:00:13.1]} 30. Qxc4 {[%clk 0:01:39.5]} 30... Qd6
{[%clk 0:00:07.3]} 31. Qb4 {[%clk 0:01:37.7]} 31... Rc7 {[%clk 0:00:05.6]} 32.
Be4 {[%clk 0:01:32.9]} 32... Ne7 {[%clk 0:00:03.9]} 33. a5 {[%clk 0:01:28.4]}
1-0

[Event "Late-Titled-Tuesday-Blitz-September-12-2023"]
[Site "Chess.com"]
[Date "2023.09.12"]
[Round "5"]
[White "arminmusovic"]
[Black "Garmendiarov"]
[Result "1-0"]
[WhiteElo "2535"]
[BlackElo "2354"]
[TimeControl "180+1"]
[EndTime "14:52:00 PDT"]
[Termination "arminmusovic won by checkmate"]

1. a3 {[%clk 0:02:58.4]} 1... d5 {[%clk 0:02:57.7]} 2. Nc3 {[%clk 0:02:59.3]}
2... e5 {[%clk 0:02:57.7]} 3. d4 {[%clk 0:02:58.7]} 3... e4 {[%clk 0:02:51.9]}
4. Bf4 {[%clk 0:02:58.5]} 4... Nf6 {[%clk 0:02:44.1]} 5. Be5 {[%clk 0:02:59]}
5... Nc6 {[%clk 0:02:34]} 6. Nb5 {[%clk 0:02:58.1]} 6... Bd6 {[%clk 0:02:28.9]}
7. Nxd6+ {[%clk 0:02:46.7]} 7... cxd6 {[%clk 0:02:29.8]} 8. Bxf6 {[%clk
0:02:47.3]} 8... Qxf6 {[%clk 0:02:29.5]} 9. e3 {[%clk 0:02:47.9]} 9... O-O
{[%clk 0:02:27.8]} 10. Ne2 {[%clk 0:02:45.2]} 10... Bg4 {[%clk 0:02:23.5]} 11.
h3 {[%clk 0:02:45.8]} 11... Bh5 {[%clk 0:02:23.6]} 12. g4 {[%clk 0:02:44.8]}
12... Bg6 {[%clk 0:02:23.6]} 13. Nf4 {[%clk 0:02:43.3]} 13... Ne7 {[%clk
0:02:16.7]} 14. h4 {[%clk 0:02:32.8]} 14... h6 {[%clk 0:02:12.9]} 15. Bg2 {[%clk
0:02:17.5]} 15... Rac8 {[%clk 0:02:04.8]} 16. c3 {[%clk 0:02:17.3]} 16... Bh7
{[%clk 0:01:53.6]} 17. Qb3 {[%clk 0:02:08.2]} 17... Kh8 {[%clk 0:01:19.6]} 18.
g5 {[%clk 0:01:11.8]} 18... hxg5 {[%clk 0:01:19.2]} 19. hxg5 {[%clk 0:01:12.7]}
19... Qxg5 {[%clk 0:01:19.4]} 20. O-O-O {[%clk 0:01:13.2]} 20... Ng6 {[%clk
0:00:45.7]} 21. Rh5 {[%clk 0:01:07.4]} 21... Qg4 {[%clk 0:00:32]} 22. Rdh1
{[%clk 0:01:05.2]} 22... Rc4 {[%clk 0:00:06.1]} 23. Nxd5 {[%clk 0:00:52.9]}
23... b5 {[%clk 0:00:04.1]} 24. Rxh7+ {[%clk 0:00:50.8]} 24... Kg8 {[%clk
0:00:04.1]} 25. Rh8+ {[%clk 0:00:50.1]} 25... Nxh8 {[%clk 0:00:03.9]} 26. Ne7#
{[%clk 0:00:50.9]} 1-0

[Event "Late-Titled-Tuesday-Blitz-September-12-2023"]
[Site "Chess.com"]
[Date "2023.09.12"]
[Round "5"]
[White "WPWPWP-2015"]
[Black "Kosak12"]
[Result "0-1"]
[WhiteElo "2547"]
[BlackElo "2801"]
[TimeControl "180+1"]
[EndTime "14:52:02 PDT"]
[Termination "Kosak12 won by resignation"]

1. d4 {[%clk 0:03:00.9]} 1... e6 {[%clk 0:02:53]} 2. e4 {[%clk 0:03:00]} 2... c5
{[%clk 0:02:53.1]} 3. Nf3 {[%clk 0:02:59.4]} 3... cxd4 {[%clk 0:02:53.1]} 4.
Nxd4 {[%clk 0:02:59.6]} 4... a6 {[%clk 0:02:53.7]} 5. Bd3 {[%clk 0:02:59.2]}
5... Bc5 {[%clk 0:02:53.3]} 6. Nb3 {[%clk 0:02:57.8]} 6... Ba7 {[%clk
0:02:53.1]} 7. O-O {[%clk 0:02:57.3]} 7... Nc6 {[%clk 0:02:51.8]} 8. c4 {[%clk
0:02:56.5]} 8... Nf6 {[%clk 0:02:50.5]} 9. Nc3 {[%clk 0:02:56.3]} 9... O-O
{[%clk 0:02:50.8]} 10. Qe2 {[%clk 0:02:53.8]} 10... d5 {[%clk 0:02:45.1]} 11.
Bg5 {[%clk 0:02:44.8]} 11... d4 {[%clk 0:02:37.1]} 12. Nb1 {[%clk 0:02:40.6]}
12... h6 {[%clk 0:02:36.5]} 13. Bh4 {[%clk 0:02:40.2]} 13... Ne5 {[%clk
0:02:36.5]} 14. N1d2 {[%clk 0:02:39.6]} 14... Ng6 {[%clk 0:02:35.8]} 15. Bg3
{[%clk 0:02:39.1]} 15... e5 {[%clk 0:02:33.7]} 16. Nf3 {[%clk 0:02:29.2]} 16...
Re8 {[%clk 0:02:25.2]} 17. h3 {[%clk 0:02:28.4]} 17... Nh5 {[%clk 0:02:19.5]}
18. Qd2 {[%clk 0:02:15.7]} 18... Nhf4 {[%clk 0:02:16]} 19. Rfe1 {[%clk
0:02:12.9]} 19... Qf6 {[%clk 0:02:12.4]} 20. Nh2 {[%clk 0:02:10.2]} 20... Be6
{[%clk 0:02:08.6]} 21. Bf1 {[%clk 0:02:05.4]} 21... Rac8 {[%clk 0:02:04.7]} 22.
Rac1 {[%clk 0:02:03.6]} 22... h5 {[%clk 0:01:54.7]} 23. Be2 {[%clk 0:01:46.9]}
23... d3 {[%clk 0:01:45.3]} 24. Bd1 {[%clk 0:01:36.8]} 24... Bxc4 {[%clk
0:01:41.8]} 25. Na5 {[%clk 0:01:26.2]} 25... Qg5 {[%clk 0:01:40.6]} 26. Kh1
{[%clk 0:00:28.9]} 26... Be6 {[%clk 0:01:33.9]} 27. Rxc8 {[%clk 0:00:26.5]}
27... Rxc8 {[%clk 0:01:33.3]} 28. Nf3 {[%clk 0:00:26.5]} 28... Qf6 {[%clk
0:01:30.2]} 29. h4 {[%clk 0:00:20.4]} 29... Bg4 {[%clk 0:01:25.6]} 30. Nxb7
{[%clk 0:00:17.4]} 30... Bxf3 {[%clk 0:01:10.7]} 31. Bxf3 {[%clk 0:00:15.9]}
31... Qb6 {[%clk 0:01:10.4]} 32. Na5 {[%clk 0:00:15.2]} 32... Rc2 {[%clk
0:01:10.5]} 33. Qe3 {[%clk 0:00:14]} 33... Qxa5 {[%clk 0:01:08.6]} 34. Rd1
{[%clk 0:00:08.5]} 34... Bxe3 {[%clk 0:01:08]} 0-1

[Event "Late-Titled-Tuesday-Blitz-September-12-2023"]
[Site "Chess.com"]
[Date "2023.09.12"]
[Round "5"]
[White "Bilan_Danila"]
[Black "kleinebeer98"]
[Result "0-1"]
[WhiteElo "2561"]
[BlackElo "2821"]
[TimeControl "180+1"]
[EndTime "14:52:08 PDT"]
[Termination "kleinebeer98 won by checkmate"]

1. d4 {[%clk 0:03:00.2]} 1... Nf6 {[%clk 0:02:59.4]} 2. Nf3 {[%clk 0:03:00.1]}
2... Nc6 {[%clk 0:02:59.9]} 3. c4 {[%clk 0:02:55.9]} 3... e6 {[%clk 0:02:56.9]}
4. Nc3 {[%clk 0:02:55]} 4... Bb4 {[%clk 0:02:55.4]} 5. Bd2 {[%clk 0:02:44.9]}
5... Bxc3 {[%clk 0:02:45.6]} 6. Bxc3 {[%clk 0:02:40.7]} 6... Ne4 {[%clk
0:02:46.5]} 7. Qc2 {[%clk 0:02:35.8]} 7... f5 {[%clk 0:02:44.5]} 8. d5 {[%clk
0:02:08.4]} 8... exd5 {[%clk 0:02:45.4]} 9. cxd5 {[%clk 0:01:40.5]} 9... Ne7
{[%clk 0:02:44.9]} 10. Bxg7 {[%clk 0:01:38.1]} 10... Rg8 {[%clk 0:02:44.4]} 11.
Bd4 {[%clk 0:01:28.8]} 11... Nxd5 {[%clk 0:02:44.4]} 12. e3 {[%clk 0:01:22.6]}
12... c5 {[%clk 0:02:42.9]} 13. Bc4 {[%clk 0:00:40]} 13... cxd4 {[%clk
0:02:42.1]} 14. Bxd5 {[%clk 0:00:38.7]} 14... Qa5+ {[%clk 0:02:42.7]} 15. Ke2
{[%clk 0:00:33.9]} 15... Qxd5 {[%clk 0:02:41.5]} 16. Nxd4 {[%clk 0:00:34.3]}
16... Rxg2 {[%clk 0:02:42]} 17. Raf1 {[%clk 0:00:30.9]} 17... Nxf2 {[%clk
0:02:32.8]} 18. Rxf2 {[%clk 0:00:18.9]} 18... Rxf2+ {[%clk 0:02:33.7]} 19. Kxf2
{[%clk 0:00:19.8]} 19... Qxh1 {[%clk 0:02:34.2]} 20. Qxf5 {[%clk 0:00:18]} 20...
Qxh2+ {[%clk 0:02:33.4]} 21. Ke1 {[%clk 0:00:16.8]} 21... d5 {[%clk 0:02:29.7]}
22. Qxd5 {[%clk 0:00:10.3]} 22... Qh4+ {[%clk 0:02:20.9]} 23. Kd2 {[%clk
0:00:09.5]} 23... Qe7 {[%clk 0:02:19.1]} 24. Qg8+ {[%clk 0:00:07.4]} 24... Qf8
{[%clk 0:02:19.8]} 25. Qxh7 {[%clk 0:00:06.5]} 25... Bd7 {[%clk 0:02:19.4]} 26.
Qe4+ {[%clk 0:00:06.7]} 26... Kd8 {[%clk 0:02:14.1]} 27. Qxb7 {[%clk 0:00:07.3]}
27... Rc8 {[%clk 0:02:14.8]} 28. Qxa7 {[%clk 0:00:07.1]} 28... Qb4+ {[%clk
0:02:10.6]} 29. Kd3 {[%clk 0:00:05.5]} 29... Bb5+ {[%clk 0:02:06.7]} 30. Ke4
{[%clk 0:00:04.7]} 30... Bc6+ {[%clk 0:02:05.5]} 31. Kd3 {[%clk 0:00:04.3]}
31... Qd6 {[%clk 0:01:57.6]} 32. Qa5+ {[%clk 0:00:04.3]} 32... Rc7 {[%clk
0:01:53.1]} 33. Qg5+ {[%clk 0:00:05]} 33... Kc8 {[%clk 0:01:53.3]} 34. Qg8+
{[%clk 0:00:04.1]} 34... Qd8 {[%clk 0:01:50.7]} 35. Qe6+ {[%clk 0:00:03.8]}
35... Qd7 {[%clk 0:01:49.6]} 36. Qg8+ {[%clk 0:00:03.9]} 36... Kb7 {[%clk
0:01:48]} 37. Qb3+ {[%clk 0:00:04.6]} 37... Ka8 {[%clk 0:01:48.7]} 38. Qa3+
{[%clk 0:00:04.7]} 38... Kb8 {[%clk 0:01:48.6]} 39. Qb4+ {[%clk 0:00:04.1]}
39... Bb7 {[%clk 0:01:48]} 40. Qf8+ {[%clk 0:00:04.2]} 40... Rc8 {[%clk
0:01:48.3]} 41. Qb4 {[%clk 0:00:03.4]} 41... Qh7+ {[%clk 0:01:46.9]} 42. Kd2
{[%clk 0:00:02.4]} 42... Qh2+ {[%clk 0:01:47.4]} 43. Kd3 {[%clk 0:00:03]} 43...
Qc7 {[%clk 0:01:42]} 44. a4 {[%clk 0:00:01.9]} 44... Ka8 {[%clk 0:01:39.4]} 45.
a5 {[%clk 0:00:02.3]} 45... Ba6+ {[%clk 0:01:39.9]} 46. Kd2 {[%clk 0:00:02.5]}
46... Qc1# {[%clk 0:01:40.3]} 0-1